Cogmind - Beta 9.4 @@@ ROGUE MODE // 2020.02.23 @ 00:45:27 Player: Hert Result: Destroyed by as-78473 with Assembled Heavy Rifle Performance ------------- Evolutions (0) 0 Regions Visited (2) 400 Robots Destroyed (34) 170 Value Destroyed (745) 745 Prototype IDs (0) 0 Alien Tech Used (0) 0 Bonus (0) 0 TOTAL SCORE: 1315 Bonus ------- None Cogmind --------- Core Integrity 0/250 Matter 277/300 Energy 98/100 System Corruption 0% Temperature Cool (0) Movement Walking (120) Location -10/Mines Parts ------- > --- POWER (1) -------- (None) > --- PROPULSION (2) --- Improved Aluminum Leg Improved Aluminum Leg > --- UTILITY (2) ------ Large Storage Unit Signal Interpreter > --- WEAPON (2) ------- Light Assault Rifle Light Assault Rifle > --- INVENTORY (10) --- Improved Aluminum Leg Improved Aluminum Leg Improved Heat Sink Large Storage Unit Visual Processing Unit EM Pulse Gun Particle Gun Light Assault Rifle Grenade Launcher Peak State ------------ > --- POWER ------------ Light Nuclear Core > --- PROPULSION ------- Wheel Wheel > --- UTILITY ---------- Improved Heat Sink Large Storage Unit > --- WEAPON ----------- Assault Rifle Assault Rifle > --- INVENTORY -------- Ion Engine Ion Engine Ion Engine Visual Processing Unit Signal Interpreter EM Pulse Gun Particle Gun Light Assault Rifle Light Assault Rifle [Rating: 12] Favorites ----------- Power Ion Engine Engine Ion Engine Power Core Light Nuclear Core Propulsion Wheel Treads Light Treads Leg Improved Aluminum Leg Wheel Wheel Utility Large Storage Unit Device Improved Heat Sink Storage Large Storage Unit Processor Signal Interpreter Weapon Assault Rifle Energy Gun Particle Gun Ballistic Gun Assault Rifle Build | -11 -10 -10 ------- Run | Scr Mat Min Slots Evolved . | . . . Power . | . . . Propulsion . | . . . Utility . | . . . Weapon . | . . . Parts Attached 28 | 6 18 4 Power 6 | 1 3 2 Engine 5 | 1 2 2 Core 1 | . 1 . Reactor . | . . . Propulsion 7 | 2 5 . Treads 2 | 2 . . Leg 2 | . 2 . Wheel 3 | . 3 . Hover . | . . . Flight . | . . . Utility 5 | 1 4 . Device 1 | . 1 . Storage 3 | 1 2 . Processor 1 | . 1 . Hackware . | . . . Protection . | . . . Artifact . | . . . Weapon 10 | 2 6 2 Energy Gun 1 | . 1 . Energy Cannon . | . . . Ballistic Gun 9 | 2 5 2 Ballistic Cannon . | . . . Launcher . | . . . Special Weapon . | . . . Impact Weapon . | . . . Slashing Weapon . | . . . Piercing Weapon . | . . . Special Melee Weapon . | . . . Unidentified Prototypes . | . . . Parts Lost 10 | . 6 4 Power 4 | . 1 3 Propulsion 3 | . 3 . Utility . | . . . Weapon 3 | . 2 1 Highest Loss Streak 2 | . 2 2 Average Slot Usage (%) 95 | . 95 97 Engine 9 | . 9 12 Core 3 | . 4 . Treads 8 | . 10 . Leg 8 | . 2 28 Wheel 9 | . 12 . Device 5 | . 7 . Storage 15 | . 16 14 Processor 5 | . 3 14 Ballistic Gun 27 | . 27 27 Naked Turns . | . . . Heaviest Build 41 | 12 41 23 Greatest Support 40 | 40 40 26 Greatest Overweight (x) 3 | . 3 . Average Overweight (x) . | . . . Largest Inventory Capacity 16 | 6 16 10 Average Capacity 9 | 5 10 10 Most Carried 11 | 4 11 10 Average Carried 8 | 2 8 9 Final Capacity 10 | 6 10 10 Final Carried 10 | 4 10 9 Class Distribution -------------------- 71% | Mutant 28% | Scavenger-Mutant Dominant Class ---------------- Mutant | -10/Materials Scavenger-Mutant | -10/Mines Resources | -11 -10 -10 ----------- Run | Scr Mat Min Matter Collected 942 | 210 680 52 Remotely . | . . . Salvage Created 971 | . 884 87 Parts 60 | . 55 5 Haulers Intercepted . | . . . Recyclers Shooed 1 | . 1 . Parts Field Recycled . | . . . Retrieved Matter . | . . . Parts Self-Destructed . | . . . Prevented . | . . . Kills | -11 -10 -10 ------- Run | Scr Mat Min Combat Hostiles Destroyed 29 | . 24 5 Guns 29 | . 24 5 Classes Destroyed 6 | . 5 1 Worker 1 | . 1 . Operator 1 | . 1 . Watcher 3 | . 3 . Swarmer 11 | . 8 3 Grunt 16 | . 16 . Assembled 2 | . . 2 Best Kill Streak 4 | . 4 3 Combat Bots Only 4 | . 4 3 Max Kills in Single Turn 2 | . 2 1 Gunslinging 1 | . 1 . Exploded . | . . . Melee . | . . . Uniques/NPCs Destroyed . | . . . Combat | -11 -10 -10 -------- Run | Scr Mat Min Damage Taken 1635 | . 1078 557 Core 251 | . 165 86 Absorbed by Shields . | . . . Core Remaining (%) 100 | 100 . . Volleys Fired 116 | . 92 24 Largest 2 | . 2 2 Hottest 85 | . 85 40 Shots Fired 224 | . 179 45 Gun 224 | . 179 45 Cannon . | . . . Launcher . | . . . Special . | . . . Kinetic 222 | . 177 45 Thermal 2 | . 2 . Explosive . | . . . Electromagnetic . | . . . Robot Hit Streak 7 | . 7 6 Robot Miss Streak 5 | . 3 5 Penetration Max . | . . . Secondary Targets 6 | . 5 1 Max Gunslinging Chain 1 | . 1 1 Shots Hit Robots 126 | . 104 22 Core Hits 55 | . 45 10 Critical Hits 2 | . 2 . Critical Kills 1 | . 1 . Critical Parts Destroyed 1 | . 1 . Melee Attacks . | . . . Impact . | . . . Slashing . | . . . Piercing . | . . . Sneak Attacks . | . . . Combat Hostiles . | . . . Follow-up Attacks . | . . . Damage Inflicted 1452 | . 1282 170 Guns 1452 | . 1282 170 Cannons . | . . . Explosions . | . . . Melee . | . . . Ramming . | . . . Kinetic 1434 | . 1264 170 Thermal 18 | . 18 . Explosive . | . . . Electromagnetic . | . . . Impact . | . . . Slashing . | . . . Piercing . | . . . Highest Corruption . | . . . Average Corruption . | . . . Corruption Purged . | . . . Overload Shots . | . . . Overflow Damage . | . . . Projectiles . | . . . Explosions . | . . . Melee . | . . . Knockbacks . | . . . Impact . | . . . Kinetic . | . . . Secondary . | . . . Self-Inflicted Damage . | . . . Shots . | . . . Rammed . | . . . Targets Rammed . | . . . Kicked . | . . . Crushed . | . . . Highest Temperature 48 | . 48 . Average Temperature 11 | . 11 . Received Heat Transfer 435 | . 435 . Siege Activations . | . . . Robots Corrupted . | . . . Combat Hostiles . | . . . Parts Fried . | . . . Impact Corruptions . | . . . Robots Melted . | . . . Combat Hostiles . | . . . Parts Melted . | . . . Heat Transferred 37 | . 37 . Parts Sabotaged . | . . . Parts Stolen . | . . . Parts Stripped . | . . . Power Chain Reactions . | . . . Missiles Intercepted . | . . . Alert | -11 -10 -10 ------- Run | Scr Mat Min Peak Influence 286 | . 286 161 Average Influence 145 | . 153 150 Maximum Alert Level 1 | . 1 . Low Security (%) 72 | 100 62 100 Level 1 27 | . 37 . Level 2 . | . . . Level 3 . | . . . Level 4 . | . . . Level 5 . | . . . High Security . | . . . Max Security . | . . . Squads Dispatched 6 | . 6 . Investigation 4 | . 4 . Extermination . | . . . Reinforcement 2 | . 2 . Assault . | . . . Garrison . | . . . Intercept . | . . . Construction Impeded . | . . . Haulers Reinforced . | . . . Stealth | -11 -10 -10 --------- Run | Scr Mat Min Distress Signals 1 | . 1 . Communications Jammed . | . . . Distress Signals . | . . . Times Spotted 44 | . 36 8 Peak Tracking Total 5 | . 5 5 Tactical Retreats 2 | . 2 . Traps | -11 -10 -10 ------- Run | Scr Mat Min Traps Triggered 4 | . 4 . Indirectly . | . . . Trap Hack Attempts . | . . . Triggered . | . . . Disarmed . | . . . Reprogrammed . | . . . Reused . | . . . Traps Extracted . | . . . Installed . | . . . Triggered . | . . . Machines | -11 -10 -10 ---------- Run | Scr Mat Min Machines Disabled . | . . . Max in Single Turn . | . . . Machines Sabotaged . | . . . Garrisons Compromised . | . . . Overloaded Fab Kills . | . . . Fab Network Shutdowns . | . . . Hacking | -11 -10 -10 --------- Run | Scr Mat Min Machines Accessed 1 | . 1 . Terminals 1 | . 1 . Fabricators . | . . . Repair Stations . | . . . Recycling Units . | . . . Scanalyzers . | . . . Garrison Access . | . . . Total Hacks 3 | . 3 . Successful 1 | . 1 . Failed 2 | . 2 . Catastrophic 1 | . 1 . Database Lockouts . | . . . Manual . | . . . Terminals 3 | . 3 . Fabricators . | . . . Repair Stations . | . . . Recycling Units . | . . . Scanalyzers . | . . . Garrison Access . | . . . Terminal Hacks 1 | . 1 . Zone Layout 1 | . 1 . Fabricator Hacks . | . . . Repair Station Hacks . | . . . Recycling Unit Hacks . | . . . Scanalyzer . | . . . Garrison Access Hacks . | . . . Unauthorized Hacks . | . . . Terminals . | . . . Fabricators . | . . . Repair Stations . | . . . Recycling Units . | . . . Scanalyzers . | . . . Garrison Access . | . . . Data Cores Recovered . | . . . Used . | . . . Hacking Detections 1 | . 1 . Full Trace Events 1 | . 1 . Feedback Events . | . . . Feedback Blocked . | . . . Robot Schematics Acquired . | . . . Robots Built . | . . . Matter . | . . . Time . | . . . Total Robot Build Rating . | . . . Part Schematics Acquired . | . . . Parts Built . | . . . Matter . | . . . Time . | . . . Total Part Build Rating . | . . . Parts Repaired . | . . . Time . | . . . Parts Recycled . | . . . Recycled Matter . | . . . Retrieved Matter . | . . . Retrieved Components . | . . . Parts Scanalyzed . | . . . Part Schematics Acquired . | . . . Parts Damaged . | . . . Bothacking | -11 -10 -10 ------------ Run | Scr Mat Min Used RIF Installer . | . . . Robots Hacked . | . . . Non-combat . | . . . Combat . | . . . Robot Hacks Applied . | . . . Relay Couplers Released . | . . . Robots Rewired . | . . . Allies Hacked . | . . . Hacks Repelled . | . . . Allies | -11 -10 -10 -------- Run | Scr Mat Min Total Allies . | . . . Largest Group . | . . . Highest-Rated Group . | . . . Highest-Rated Ally . | . . . Total Orders . | . . . Ally Attacks . | . . . Total Damage . | . . . Kills . | . . . Allies Corrupted . | . . . Allies Melted . | . . . Intel | -11 -10 -10 ------- Run | Scr Mat Min Robot Analysis Total . | . . . Derelict Logs Recovered . | . . . Drone Launches . | . . . Drone Recoveries . | . . . Exploration | -11 -10 -10 ------------- Run | Scr Mat Min Turns Passed 1613 | 83 1171 359 Spaces Moved 1031 | 44 741 246 Core 2 | 2 . . Treads 245 | 42 203 . Legs 310 | . 64 246 Wheels 474 | . 474 . Hover . | . . . Flight . | . . . Fastest Speed 50 | 50 90 120 Average Speed 117 | 155 114 120 Slowest Speed 180 | 160 180 120 Overloaded Moves . | . . . Propulsion Burnouts . | . . . Robots Hopped . | . . . Cave-ins Triggered . | . . . Exploration Rate (%) 47 | 3 87 51 Regions Visited 2 Branch Regions 1 Pre-discovered Areas 1 | . . 1 Known Exits Taken 1 | . 1 . Unknown Exits Taken 1 | 1 . . Scrap Searched . | . . . Spaces Dug . | . . . Terrain Destroyed . | . . . Melee . | . . . Projectile . | . . . AOE . | . . . Actions | -11 -10 -10 --------- Run | Scr Mat Min Total 1226 | 59 892 275 Wait 17 | . 17 . Move 1029 | 43 740 246 Hop . | . . . Pick Up 27 | 10 17 . Fast Attach 4 | . 1 3 Attach 15 | 6 8 1 Detach . | . . . Swap 9 | . 9 . Drop 9 | . 8 1 Fire 116 | . 92 24 Melee . | . . . Ram . | . . . Kick . | . . . Crush . | . . . Escape Stasis . | . . . Rewire . | . . . Trap . | . . . Miscellaneous . | . . . Route ------- -11/Scrapyard -10/Materials (discovered 4 exits: *Mat x3 / *Min) -10/Mines (discovered 1 exit: *Mat) History --------- Turn | Location | Event 52 | -11/Scrapyard | Discovered new exit (range 15) 84 | -11/Scrapyard | Entered Materials 321 | -10/Materials | Build established: Mutant 711 | -10/Materials | Discovered new exit (range 9) 715 | -10/Materials | Discovered new exit (range 16) 761 | -10/Materials | Discovered new exit (range 15) 1053 | -10/Materials | Discovered new exit (range 16) 1082 | -10/Materials | Core integrity fell below 50% 1105 | -10/Materials | Identified exit to Materials 1241 | -10/Materials | Identified exit to Mines 1255 | -10/Materials | Entered Mines 1299 | -10/Mines | Discovered exit to Materials (range 5) 1314 | -10/Mines | Met a Derelict bent on vengeance 1337 | -10/Mines | Core integrity fell below 20% 1423 | -10/Mines | Assembled infested the area 1454 | -10/Mines | Learned location of Storage (-7) 1614 | -10/Mines | Destroyed by as-78473 with Assembled Heavy Rifle Last Messages --------------- following our previous successful raids." World map updated: -7/Storage. 0Z-SN3(g): "We scattered so the Unaware couldn't effectively use their advantage in numbers, and I suggest you do the same." 0Z-SN3(g) slips back into the shadows. K-01 Serf collects debris. Acquired 3 matter. U-05 Engineer builds a Wall. U-05 Engineer lays Concrete. U-05 Engineer builds a Wall. U-05 Engineer lays Concrete. U-05 Engineer builds a Wall. U-05 Engineer lays Concrete. U-05 Engineer builds a Wall. Lgt. Ion Engine destroyed. as-67282 destroyed. Switching to secondary target: as-48198. Machine disabled. Ion Engine destroyed. as-48198 destroyed. Map ----- +----------------------------------------------------+ | ????????????????????????????????????? | | ????????????????????????????????????? | | ????????????????????????????????????? | | ????????????????????????????????????? | | ????????????????????????????????????? | | ????????????????????????????????????? | | ????????????????????????????????????? | | ????????????????????????????????????? | | ????????????????????????????????????? | | ????????????????????????????????????? | | ????????????????????????????????????? | | ????????????????????????????????????? | | ??????????????????????#?????????????? | | ????????????????????? ! ???????????? | | ???????????????????? =% ??????????? | | ???????????????????# a !*!=?????????? | | ??????????????????# a%%?????????? | | ?????????????????# # #????????? | | ????????????????#= % #????????? | | ??????????###### ????????? | | ?????????##" ## #?????????? | | ?????????#"" # au #?????????? | | ?????????#[! #?????????? | | ?????????#!! % #??????????? | | ?????????#" % #????????????? | | ?????????## @# ##???????????? | | ??????????#### #???????????? | | ???????????### #???????????? | | ???????????# ###########??? | | ???????????## ### #??? | | ????????????### # ## " #??? | | ????????????# # ##?# ### #??? | | ????????????# # #### % #?# #??? | | ???????####?# ## ##?# =#??? | | ??????## ### %## ### ##??# %#### | | ??????# #######???# | | ??????# #????????# ## | | ??????# ##????????# ## | | ??????## #######?????????# ### | | ???????## ####???????????????# | | ????????####??????????????????# | | ??????????????????????????????# ### | | ????????????????????????????### #?# | | ????????????????????????????# #??# | | ????????????????????????????# ###???# | | ????????????????????????????# #?????# | | ?????####???????????????????# ####### | | ????## ##????############### | | ????# #????# ###### | | ????# ##???# ###############????## | +----------------------------------------------------+ Best States ------------- Heat Dissipation 39 Energy Generation 14 Energy Capacity 250 Matter Stores 300 Matter Capacity 300 Sight Range 16 Terrain Scan Density 10 Evasion (%) 42 Recoil Reduction 2 Item Schematics ----------------- None Robot Schematics ------------------ None Fabricated ------------ Nothing Alien Tech Used ----------------- None Achievements -------------- None Challenges ------------ None Game ------ Seed ShrapnelImprovedThruster Manual? 0 Play Time 00:16:12 Cumulative 14.1 hours Start 2020.02.23 @ 00:31:54 End 2020.02.23 @ 00:45:27 Sessions 1 Manual Loads 0 Difficulty Rogue Special Mode None Game No. 18 Rogue 18 Adventurer 0 Explorer 0 Win Type - Total 0 Types 0/0/0/0/0/0/0 Lore% 20 Gallery% 20 Achievement% 19 Wizard Run 0 Options --------- ASCII 0 Keyboard 0 Movement Mouse Keybinds 0 Fullscreen 2 Font 24/Smallcaps Map View 76x50 Tactical HUD 0 Map Filters NONE Filters NONE Steam 1 RUN: bf3287e7-8a5b-4e63-bd0d-eb2cf23edd37